bitfinex/quotes_SOLUSD_20250814
["timestamp","ask_amount","ask_price","bid_price","bid_amount"]
[1755204937613,5.89242535,192.59,192.56,10.29735387]
[1755204937932,3.53439482,192.6,192.58,10.29735387]
[1755204938115,3.53439482,192.6,192.59,10.29735387]
[1755204938506,0.06,192.6,192.59,10.29735387]
[1755204939122,4.23276604,192.6,192.59,10.29735387]
[1755204940231,9.42487403,192.6,192.59,10.29735387]
[1755204943321,38.28,192.56,192.54,10.29735387]
[1755204944045,37.58,192.56,192.55,10.29735387]
[1755204945240,37.58,192.56,192.53,26.0]
[1755204945527,37.58,192.56,192.55,10.29735387]
[1755204946429,41.05524423,192.56,192.53,26.0]
[1755204946616,37.58,192.56,192.55,10.29735387]
[1755204946937,41.05789691,192.56,192.55,10.29735387]
[1755204948841,41.05789691,192.56,192.55,10.32735387]
[1755204949744,15.10621557,192.55,192.52,0.03]
[1755204949915,14.65270497,192.53,192.52,0.03]
[1755204950119,51.35525078,192.53,192.52,0.03]
[1755204950322,52.05525078,192.53,192.5,0.03]
[1755204950521,4.35898415,192.51,192.5,0.03]
[1755204950728,7.83688106,192.51,192.5,0.03]
[1755204951131,13.7314164,192.51,192.5,0.03]
[1755204951424,9.37243225,192.51,192.5,0.03]
[1755204951930,46.95243225,192.51,192.5,0.03]
[1755204955338,51.30917178,192.51,192.5,0.03]
[1755204955849,41.05789691,192.51,192.5,6.7304557]
[1755204956433,41.05789691,192.51,192.5,0.03]
[1755204956737,46.25243225,192.51,192.5,0.03]
[1755204956937,3.47789691,192.51,192.5,7.4104557]
[1755204957142,3.47789691,192.53,192.5,7.4104557]
[1755204957332,5.05673953,192.56,192.5,7.4104557]
[1755204957333,3.47789691,192.55,192.5,0.03]
[1755204957531,0.7,192.53,192.5,6.7304557]
[1755204957853,4.17789691,192.52,192.5,0.03]
[1755204958038,41.05789691,192.51,192.5,0.03]
[1755204958239,41.05789691,192.51,192.5,6.7304557]
[1755204959049,41.75789691,192.51,192.5,0.03]
[1755204959251,46.95243225,192.51,192.5,0.03]
[1755204960120,41.05789691,192.51,192.5,0.03]
[1755204960368,41.05789691,192.51,192.5,6.7304557]
[1755204960726,46.97243225,192.51,192.5,0.03]
[1755204961236,41.77789691,192.51,192.5,0.03]
[1755204961761,41.05789691,192.51,192.5,0.03]
[1755204962223,41.05789691,192.51,192.5,6.7304557]
[1755204962428,41.05789691,192.51,192.5,7.4304557]
[1755204962838,41.05789691,192.51,192.5,6.7304557]
[1755204963969,3.48148254,192.51,192.5,11.92526089]
[1755204964262,3.48137878,192.52,192.5,6.7304557]
[1755204964428,3.48137878,192.52,192.51,6.7004557]
[1755204966043,3.48137878,192.52,192.51,12.59499104]
[1755204966430,3.48137878,192.52,192.5,5.22475537]
[1755204966633,3.48137878,192.52,192.5,0.03]
[1755204966852,3.48137878,192.52,192.51,6.7004557]
[1755204969436,3.48137878,192.52,192.51,12.59499104]
[1755204969658,3.48113664,192.52,192.51,12.59499104]
[1755204970038,3.48113664,192.52,192.51,11.89499104]
[1755204971058,3.48113664,192.52,192.51,12.59499104]
[1755204972442,0.06,192.54,192.51,12.59499104]
[1755204972646,0.06,192.54,192.53,6.7004557]
[1755204972864,0.06,192.54,192.53,39.4009114]
[1755204973050,0.06,192.56,192.55,26.0]
[1755204973365,0.06,192.56,192.55,32.7004557]
[1755204973555,0.06,192.6,192.59,26.0]
[1755204973751,0.06,192.62,192.6,15.10621557]
[1755204973933,0.06,192.62,192.61,6.7004557]
[1755204974558,4.26035762,192.62,192.61,6.7004557]
[1755204974859,3.54035762,192.62,192.61,6.7004557]
[1755204976352,3.54035762,192.62,192.61,11.89229412]
[1755204976558,0.06,192.62,192.61,11.89229412]
[1755204976862,0.06,192.62,192.61,6.7004557]
[1755204977838,0.06,192.62,192.61,11.89229412]
[1755204978151,0.06,192.62,192.61,12.59229412]
[1755204978566,0.06,192.62,192.61,11.89229412]
[1755204980965,0.78,192.62,192.59,82.38725]
[1755204981163,0.06,192.62,192.61,6.7004557]
[1755204981340,37.58,192.62,192.61,6.7004557]
[1755204981539,41.05697498,192.62,192.61,6.7004557]
[1755204981767,41.77697498,192.62,192.61,6.7004557]
[1755204983938,46.96863593,192.62,192.51,66.8]
[1755204984142,4.19697498,192.61,192.56,6.7004557]
[1755204984348,3.47697498,192.61,192.56,6.7004557]
[1755204984560,0.72,192.6,192.56,6.7004557]
[1755204984765,42.71237758,192.59,192.56,6.7004557]
[1755204985064,4.19697498,192.58,192.56,6.7004557]
[1755204985362,3.47697498,192.58,192.55,6.7004557]
[1755204985770,0.72,192.57,192.55,6.7004557]
[1755204986069,37.52,192.56,192.55,6.7004557]
[1755204986265,41.71697498,192.56,192.55,6.7004557]
[1755204986845,41.71697498,192.56,192.54,6.7004557]
[1755204987069,0.72,192.55,192.54,6.7004557]
[1755204989353,37.52,192.56,192.54,6.7004557]
[1755204989564,37.52,192.56,192.55,6.7004557]
[1755204989767,40.99670639,192.56,192.55,6.7004557]
[1755204989974,37.52,192.56,192.55,6.7004557]
[1755204990474,40.99671083,192.56,192.55,6.7004557]
[1755204990958,37.52,192.56,192.55,6.7004557]
[1755204991157,40.99671083,192.56,192.55,6.7004557]
[1755204991552,40.99671559,192.56,192.55,6.7004557]
[1755204991745,37.52,192.56,192.55,6.7004557]
[1755204992763,0.69,192.6,192.55,12.57391194]
[1755204992951,37.52,192.59,192.57,6.7004557]
[1755204993272,4.16651355,192.58,192.51,66.83]
[1755204993449,0.69,192.57,192.52,6.7004557]
[1755204993650,37.52,192.56,192.52,6.7004557]
[1755204993856,4.16651355,192.55,192.52,6.7004557]
[1755204994046,0.69,192.54,192.52,6.7004557]
[1755204994376,37.52,192.53,192.52,6.7004557]
[1755204994668,38.21,192.53,192.51,0.03]
[1755204994851,4.16777598,192.52,192.51,0.03]
[1755204995249,3.47777598,192.52,192.51,6.7304557]
[1755204995467,37.52,192.53,192.51,7.4104557]
[1755204995674,37.52,192.53,192.52,7.3804557]
[1755204996562,37.52,192.53,192.52,12.57472123]
[1755204996859,37.52,192.56,192.52,12.57472123]
[1755204997070,37.52,192.56,192.55,6.7004557]
[1755204997766,40.99847555,192.56,192.55,6.7004557]
[1755204997967,37.52,192.56,192.55,11.89391194]
[1755204998857,41.68934647,192.56,192.55,6.7004557]
[1755204999056,41.68934647,192.56,192.55,6.7304557]
[1755204999459,41.68934647,192.56,192.55,0.03]
[1755205001583,41.68934647,192.56,192.55,6.7304557]
[1755205001757,40.99934647,192.56,192.55,6.7304557]
[1755205002163,41.68934647,192.56,192.55,6.7304557]
[1755205002662,46.882533,192.56,192.55,0.03]
[1755205003787,41.68934647,192.56,192.55,0.03]
[1755205004287,46.882533,192.56,192.55,0.03]
[1755205004585,9.362533,192.56,192.55,0.03]
[1755205004882,46.862533,192.56,192.55,0.03]
[1755205006389,41.66934647,192.56,192.55,0.03]
[1755205007079,3.47934647,192.56,192.55,6.7304557]
[1755205007389,37.5,192.56,192.55,6.7304557]
[1755205007592,40.97934647,192.56,192.55,6.7304557]
[1755205008473,40.97934647,192.56,192.55,11.92391194]
[1755205009079,40.97934647,192.56,192.55,6.7304557]
[1755205009789,40.97934647,192.56,192.55,11.92391194]
[1755205009960,37.5,192.56,192.55,12.60391194]
[1755205010365,0.06,192.61,192.55,12.60391194]
[1755205010593,0.06,192.61,192.6,6.7004557]
[1755205011076,0.06,192.62,192.6,7.3804557]
[1755205011389,0.06,192.62,192.61,7.3804557]
[1755205011686,0.06,192.62,192.61,9.4587547]
[1755205012698,0.06,192.63,192.62,15.10621557]
[1755205012990,0.06,192.63,192.62,22.48667127]
[1755205014070,0.06,192.63,192.62,7.3804557]
[1755205015401,0.06,192.63,192.62,11.89202459]
[1755205015596,0.06,192.63,192.62,32.7004557]
[1755205015805,0.75,192.63,192.62,6.7004557]
[1755205016099,0.06,192.63,192.62,6.7004557]
[1755205016876,0.06,192.63,192.62,7.3804557]
[1755205017301,0.06,192.63,192.62,33.3804557]
[1755205017482,0.06,192.63,192.62,38.57202459]
[1755205017683,0.06,192.63,192.62,37.89202459]
[1755205018200,0.06,192.63,192.62,38.57202459]
[1755205019174,0.06,192.63,192.62,37.89202459]
[1755205019394,0.06,192.63,192.62,32.7004557]
[1755205020374,0.06,192.63,192.62,37.89202459]
[1755205020995,0.06,192.63,192.62,38.55202459]
[1755205021808,0.06,192.63,192.62,37.89202459]
[1755205023902,0.06,192.63,192.62,26.0]
[1755205024107,0.06,192.63,192.62,32.7004557]
[1755205024884,0.78,192.63,192.62,6.7004557]
[1755205025408,0.78,192.63,192.6,6.7004557]
[1755205025573,0.78,192.63,192.61,6.7004557]
[1755205025776,5.91161337,192.62,192.61,6.7004557]
[1755205026684,0.72,192.62,192.61,6.7004557]
[1755205027502,5.91156889,192.62,192.61,6.7004557]
[1755205027805,0.72,192.62,192.61,6.7004557]
[1755205029201,0.06,192.63,192.61,6.7004557]
[1755205029402,0.06,192.63,192.62,6.7004557]
[1755205029901,0.06,192.63,192.62,12.55202459]
[1755205030393,0.06,192.63,192.62,11.89202459]
[1755205031115,0.06,192.63,192.62,6.7004557]
[1755205032186,0.06,192.63,192.62,11.89202459]
[1755205035444,0.06,192.63,192.62,12.55202459]
[1755205035716,0.06,192.64,192.62,53.65824016]
[1755205035922,0.06,192.64,192.63,7.3604557]
[1755205037023,0.06,192.64,192.63,12.55175508]
[1755205040145,0.78,192.64,192.63,6.7004557]
[1755205040458,0.06,192.64,192.63,6.7004557]
[1755205041018,0.06,192.64,192.63,11.89175508]
[1755205041523,0.78,192.64,192.61,0.03]
[1755205041731,0.06,192.64,192.63,6.7004557]
[1755205042617,0.06,192.64,192.63,11.89175508]
[1755205043145,0.78,192.64,192.63,6.7004557]
[1755205043333,0.06,192.64,192.63,11.89175508]
[1755205043541,0.06,192.64,192.63,12.55175508]
[1755205044929,0.06,192.64,192.63,11.89175508]
[1755205045133,0.06,192.64,192.63,12.55175508]
[1755205045515,0.06,192.64,192.63,6.7004557]
[1755205045720,0.78,192.64,192.63,6.7004557]
[1755205045921,0.06,192.64,192.63,6.7004557]
[1755205046327,0.06,192.64,192.63,11.89175508]
[1755205048138,0.06,192.64,192.63,5.19129938]
[1755205048347,0.06,192.64,192.63,32.7004557]
[1755205050357,0.06,192.64,192.63,37.89175508]
[1755205050563,0.06,192.64,192.63,38.60175508]
[1755205050739,0.06,192.64,192.63,37.89175508]
[1755205050938,0.74,192.64,192.61,0.03]
[1755205051155,3.47495713,192.63,192.61,0.03]
[1755205051448,38.14,192.64,192.61,0.03]
[1755205051449,3.47495713,192.62,192.61,0.03]
[1755205051650,3.47495713,192.63,192.61,6.7304557]
[1755205051839,4.15495713,192.62,192.61,6.7304557]
[1755205052042,0.68,192.62,192.61,6.7304557]
[1755205052359,4.15495713,192.62,192.61,6.7304557]
[1755205052931,4.15495713,192.62,192.61,0.03]
[1755205054744,4.15495713,192.62,192.61,6.7304557]
[1755205055264,4.15495713,192.62,192.61,0.03]
[1755205056053,16.04698172,192.62,192.61,0.03]
[1755205056247,34.82867163,192.62,192.58,0.03]
[1755205056448,16.26081462,192.59,192.58,0.03]
[1755205056660,57.13577175,192.59,192.58,0.03]
[1755205056853,57.81577175,192.59,192.58,0.03]
[1755205057051,59.25055809,192.59,192.58,0.03]
[1755205057367,53.44779041,192.59,192.58,0.03]
[1755205058462,68.55400598,192.59,192.58,0.03]
[1755205059251,74.36863308,192.59,192.58,0.03]
[1755205059864,53.44779041,192.59,192.58,0.03]
[1755205060066,41.55495713,192.59,192.58,0.03]
[1755205060263,51.10596595,192.59,192.58,0.03]
[1755205060666,46.74733471,192.59,192.58,0.03]
[1755205060865,51.10600482,192.59,192.58,0.03]
[1755205061291,45.91362724,192.59,192.58,0.03]
[1755205061574,41.55495713,192.59,192.58,0.03]
[1755205063575,46.74733471,192.59,192.58,0.03]
[1755205063776,41.55495713,192.59,192.58,0.03]
[1755205063949,46.74733471,192.59,192.58,0.03]
[1755205065178,45.91362724,192.59,192.58,0.03]
[1755205065384,40.87495713,192.59,192.58,0.03]
[1755205065674,41.55495713,192.59,192.58,0.03]
[1755205066350,40.87495713,192.59,192.58,0.03]
[1755205067170,40.87495713,192.59,192.58,6.7304557]
[1755205067379,39.50494389,192.59,192.58,6.7304557]
[1755205068080,2.10494389,192.59,192.58,6.7304557]
[1755205068369,37.4,192.59,192.58,12.63310291]
[1755205071381,0.06,192.64,192.58,12.63310291]
[1755205071679,37.38,192.63,192.58,5.22264721]
[1755205071983,0.68,192.62,192.58,6.7304557]
[1755205072675,5.19183842,192.61,192.58,0.03]
[1755205072885,37.38,192.6,192.58,0.03]
[1755205073055,38.06,192.6,192.58,0.03]
[1755205073259,0.68,192.59,192.58,0.03]
[1755205073461,7.3804557,192.59,192.58,0.03]
[1755205073786,0.68,192.59,192.58,0.03]
[1755205074184,0.68,192.61,192.58,0.03]
[1755205074361,37.38,192.59,192.58,0.03]
[1755205074755,38.06,192.59,192.58,0.03]
[1755205075788,43.25237758,192.59,192.58,0.03]
[1755205075961,38.06,192.59,192.58,0.03]
[1755205079483,41.54043167,192.59,192.58,0.03]
[1755205080472,3.48043167,192.59,192.58,7.4404557]
[1755205080672,37.38,192.59,192.58,7.4404557]
[1755205080872,40.86043167,192.59,192.58,7.4404557]
[1755205083167,40.86043167,192.59,192.58,0.03]
[1755205084574,41.53043167,192.59,192.58,0.03]
[1755205085090,45.88155082,192.59,192.58,0.03]
[1755205085284,41.53043167,192.59,192.58,0.03]
[1755205085500,40.86043167,192.59,192.58,0.03]
[1755205088508,41.53043167,192.59,192.58,0.03]
[1755205089000,40.86043167,192.59,192.58,0.03]
[1755205089597,40.86043167,192.59,192.58,6.7304557]
[1755205090486,40.86043167,192.59,192.58,0.03]
[1755205090884,40.86043167,192.59,192.58,6.7304557]
[1755205091087,40.86043167,192.59,192.58,12.63310291]
[1755205091286,3.48043167,192.59,192.58,12.63310291]
[1755205091578,0.06,192.61,192.58,12.63310291]
[1755205091772,0.06,192.61,192.6,6.7004557]
[1755205092393,0.06,192.61,192.6,7.4104557]
[1755205093001,0.06,192.61,192.6,12.60256369]
[1755205093201,0.06,192.63,192.6,27.70877926]
[1755205093509,0.06,192.63,192.62,6.7004557]
[1755205093998,0.06,192.63,192.62,7.4104557]
[1755205095097,0.06,192.63,192.62,12.60202459]
[1755205096002,0.06,192.63,192.62,27.70824016]
[1755205096203,0.06,192.64,192.63,6.7004557]
[1755205096403,0.06,192.64,192.63,7.4104557]
[1755205096589,0.06,192.66,192.65,41.10621557]
[1755205096795,0.06,192.67,192.65,54.50712697]
[1755205096994,0.06,192.67,192.66,14.1109114]
[1755205097304,0.06,192.67,192.66,19.30140242]
[1755205097879,0.06,192.68,192.66,19.30140242]
[1755205098186,0.06,192.68,192.67,7.4104557]
[1755205098609,0.06,192.69,192.68,41.10621557]
[1755205098915,37.34,192.75,192.7,15.10621557]
[1755205099089,3.47947357,192.74,192.71,6.7004557]
[1755205099409,0.67,192.75,192.71,11.88960001]
[1755205100521,0.77,192.72,192.7,6.7004557]
[1755205100687,0.06,192.69,192.66,5.19049102]
[1755205100887,0.06,192.69,192.68,6.7004557]
[1755205101913,0.06,192.69,192.68,11.89040795]
[1755205102595,0.06,192.69,192.68,6.7004557]
[1755205103296,0.06,192.69,192.68,11.89040795]
[1755205104421,4.35330437,192.82,192.72,15.10621557]
[1755205104607,12.59731611,192.86,192.81,6.7004557]
[1755205104608,0.67,192.86,192.81,6.7004557]
[1755205104811,3.56825866,192.87,192.79,26.0]
[1755205105018,3.56825866,192.87,192.82,6.7004557]
[1755205105019,3.46825866,192.86,192.82,6.7004557]
[1755205105210,3.46825866,192.86,192.84,6.7004557]
[1755205105610,0.67,192.85,192.84,6.7004557]
[1755205106697,0.67,192.85,192.84,10.26731201]
[1755205108319,0.67,192.85,192.8,10.26731201]
[1755205108320,5.85540062,192.85,192.8,10.26731201]
[1755205108503,0.67,192.84,192.8,10.26731201]
[1755205108704,0.67,192.84,192.81,10.26731201]
[1755205109122,0.67,192.84,192.8,10.26731201]
[1755205109306,10.93731201,192.84,192.78,10.26731201]
[1755205109512,0.67,192.83,192.8,10.26731201]
[1755205109811,37.32,192.82,192.74,26.0]
[1755205110007,4.12604124,192.81,192.75,10.26731201]
[1755205110213,10.93731201,192.8,192.7,71.9893696]
[1755205110505,10.26731201,192.75,192.69,10.26731201]
[1755205110704,10.26731201,192.72,192.66,10.26731201]
[1755205110920,0.67,192.71,192.66,10.26731201]
[1755205111425,37.97,192.74,192.7,10.26731201]
[1755205111625,5.85860582,192.73,192.68,10.26731201]
[1755205111800,5.85860582,192.73,192.66,10.26731201]
[1755205111801,10.93731201,192.72,192.66,10.26731201]
[1755205112001,0.67,192.71,192.66,10.26731201]
[1755205112204,0.67,192.7,192.68,10.26731201]
[1755205112424,37.97,192.69,192.67,10.26731201]
[1755205112722,0.67,192.68,192.67,10.26731201]
[1755205112923,37.3,192.68,192.67,10.26731201]
[1755205113303,37.3,192.68,192.64,31.19096643]
[1755205113902,37.3,192.68,192.64,31.89096643]
[1755205114105,37.3,192.68,192.64,31.19096643]
[1755205114308,37.3,192.68,192.65,0.7]
[1755205114707,0.67,192.71,192.65,0.7]
[1755205115041,37.3,192.71,192.7,10.26731201]
[1755205115545,37.3,192.71,192.65,0.7]
[1755205115707,37.3,192.71,192.7,10.26731201]
[1755205117536,31.18757877,192.77,192.7,15.4567012]
[1755205117739,41.4480968,192.76,192.73,10.26731201]
[1755205117914,0.67,192.75,192.73,10.26731201]
[1755205119411,37.32,192.74,192.73,10.26731201]
[1755205119808,0.06,192.77,192.73,10.26731201]
[1755205120024,0.06,192.77,192.76,10.26731201]
[1755205120404,37.38,192.77,192.76,10.26731201]
[1755205120616,38.05,192.77,192.76,10.26731201]
[1755205120812,0.06,192.77,192.76,10.26731201]
[1755205121015,37.38,192.77,192.76,10.26731201]
[1755205121310,0.06,192.77,192.7,38.97311855]
[1755205121512,37.38,192.77,192.75,10.26731201]
[1755205121715,0.67,192.76,192.75,10.26731201]
[1755205121920,14.39734354,192.76,192.7,36.26731201]
[1755205122238,0.67,192.75,192.71,10.26731201]
[1755205122412,0.67,192.74,192.7,10.26731201]
[1755205122617,37.3,192.73,192.71,10.26731201]
[1755205123024,0.67,192.72,192.7,10.26731201]
[1755205124116,10.93731201,192.71,192.65,0.03]
[1755205124323,10.26731201,192.68,192.65,0.03]
[1755205124520,37.3,192.67,192.65,0.03]
[1755205125223,0.67,192.66,192.65,0.03]
[1755205125427,37.3,192.67,192.65,0.03]
[1755205125428,37.97,192.67,192.65,0.03]
[1755205125742,37.3,192.66,192.65,0.03]
[1755205127225,37.97,192.66,192.65,0.03]
[1755205127744,43.16049102,192.66,192.65,0.03]
[1755205128124,72.00127582,192.66,192.65,0.03]
[1755205130619,61.73396381,192.66,192.65,0.03]
[1755205130822,41.10621557,192.64,192.63,0.03]
[1755205131063,54.8407848,192.64,192.63,0.03]
[1755205131237,55.5107848,192.64,192.63,0.03]
[1755205133060,98.0618147,192.64,192.63,0.03]
[1755205135948,15.10621557,192.63,192.61,0.03]
[1755205136146,51.07456923,192.62,192.61,0.03]
[1755205136350,66.8507848,192.62,192.61,0.03]
[1755205137236,72.04235369,192.62,192.61,0.03]
[1755205137547,72.04235369,192.62,192.6,1e-08]
[1755205137548,15.10621557,192.61,192.6,1e-08]
[1755205137746,26.0,192.59,192.56,0.03]
[1755205137952,14.60574041,192.57,192.56,0.03]
[1755205138150,28.8407848,192.57,192.56,0.03]
[1755205138454,33.8492132,192.57,192.55,0.03]
[1755205138655,77.80456923,192.56,192.55,0.03]
[1755205139247,82.99775576,192.56,192.55,0.03]
[1755205140564,98.10397133,192.56,192.55,0.03]
[1755205140735,72.10397133,192.56,192.55,0.03]
[1755205140936,41.10621557,192.53,192.52,0.03]
[1755205141143,97.41478054,192.53,192.52,0.03]
[1755205141336,98.09478054,192.53,192.52,0.03]
[1755205142649,50.44746853,192.53,192.52,0.03]
[1755205142849,87.16746853,192.53,192.52,0.03]
[1755205143749,83.70021131,192.53,192.52,0.03]
[1755205144054,63.4,192.53,192.52,0.03]
[1755205144548,68.64752332,192.53,192.52,0.03]
[1755205144744,72.10081138,192.53,192.52,0.03]
[1755205145254,42.57399574,192.53,192.52,0.03]
[1755205145564,68.62752332,192.53,192.52,0.03]
[1755205145853,72.07949456,192.53,192.52,0.03]
[1755205146051,72.07949456,192.53,192.52,1e-08]
[1755205146253,15.10621557,192.52,192.51,1e-08]
[1755205146464,34.70043631,192.52,192.51,1e-08]
[1755205147329,31.24779311,192.52,192.51,1e-08]
[1755205147555,30.56779311,192.52,192.51,1e-08]
[1755205148830,5.19400752,192.53,192.51,1e-08]
[1755205149042,37.46,192.52,192.51,1e-08]
[1755205149845,37.46,192.52,192.51,0.67000001]
[1755205150564,37.46,192.52,192.51,1e-08]
[1755205151444,42.65426553,192.52,192.51,1e-08]
[1755205151961,57.7604811,192.52,192.51,1e-08]
[1755205152354,52.56621557,192.52,192.51,1e-08]
[1755205152754,37.46,192.52,192.51,1e-08]
[1755205153235,42.65426553,192.52,192.51,1e-08]
[1755205153436,43.33426553,192.52,192.51,1e-08]
[1755205153643,42.65426553,192.52,192.51,1e-08]
[1755205155159,72.160033,192.52,192.51,1e-08]
[1755205155644,72.160033,192.52,192.51,0.67000001]
[1755205155645,3.45223989,192.52,192.51,0.67000001]
[1755205155849,37.48,192.52,192.51,0.67000001]
[1755205156047,47.74731201,192.52,192.51,1e-08]
[1755205156249,48.42731201,192.52,192.51,1e-08]
[1755205156546,42.67426553,192.52,192.51,1e-08]
[1755205158465,42.67426553,192.52,192.47,11.13731201]
[1755205158466,15.10621557,192.43,192.35,2.080462]
[1755205158669,66.60673654,192.42,192.35,2.080462]
[1755205158962,37.78,192.42,192.37,10.93731201]
[1755205159548,37.94,192.42,192.41,0.87]
[1755205160565,37.94,192.42,192.41,16.33454708]
[1755205160760,37.94,192.42,192.41,0.2]
[1755205162646,37.94,192.42,192.41,0.87]
[1755205162840,37.94,192.42,192.41,16.33454708]
[1755205163084,12.9859449,192.52,192.41,16.33454708]
[1755205163085,37.9,192.44,192.41,16.33454708]
[1755205163253,37.9,192.43,192.41,5.39723507]
[1755205163460,37.9,192.44,192.42,10.93731201]
[1755205163782,37.92,192.45,192.43,10.93731201]
[1755205163980,37.92,192.45,192.44,10.93731201]
[1755205164385,37.92,192.47,192.44,10.93731201]
[1755205164587,37.92,192.5,192.46,10.26731201]
[1755205164877,37.92,192.5,192.49,10.26731201]
[1755205165045,37.92,192.5,192.49,10.93731201]
[1755205166180,37.92,192.5,192.49,16.13238707]
[1755205166563,37.92,192.52,192.49,16.13238707]
[1755205166763,37.92,192.52,192.51,10.26731201]
[1755205166967,0.06,192.56,192.51,10.93731201]
[1755205167163,37.9,192.55,192.52,0.67]
[1755205167456,37.9,192.55,192.52,10.93731201]
[1755205167775,37.9,192.55,192.53,10.26731201]
[1755205168076,37.9,192.55,192.52,10.26731201]
[1755205168284,37.9,192.55,192.53,15.46130775]
[1755205168576,37.9,192.55,192.53,10.26731201]
[1755205169180,0.06,192.56,192.54,10.93731201]
[1755205169474,37.88,192.55,192.54,0.67]
[1755205169862,37.88,192.55,192.52,5.1942244]
[1755205170251,37.88,192.55,192.49,12.98718214]
[1755205170252,37.88,192.55,192.5,0.67]
[1755205170456,37.88,192.55,192.49,5.19507506]
[1755205170656,37.88,192.55,192.53,10.26731201]
[1755205171579,13.73979341,192.54,192.46,10.26731201]
[1755205171879,10.26731201,192.52,192.45,26.0]
[1755205172052,37.86,192.51,192.46,10.26731201]
[1755205172254,3.4724814,192.5,192.47,10.26731201]
[1755205172474,3.4724814,192.5,192.49,10.26731201]
[1755205172855,37.86,192.51,192.49,10.26731201]
[1755205173178,37.86,192.51,192.5,10.95731201]
[1755205173574,0.06,192.56,192.5,10.95731201]
[1755205173767,0.06,192.56,192.55,10.26731201]
[1755205173967,37.96,192.56,192.55,10.26731201]
[1755205174179,37.96,192.56,192.51,10.26731201]
[1755205174180,41.43569517,192.56,192.51,10.26731201]
[1755205174356,14.45300718,192.55,192.48,31.88529384]
[1755205174681,3.47569517,192.54,192.48,42.15260585]
[1755205174984,37.92,192.53,192.49,10.26731201]
[1755205175180,3.47569517,192.52,192.49,10.26731201]
[1755205175386,3.47569517,192.52,192.48,36.26731201]
[1755205176196,4.18569517,192.52,192.48,36.26731201]
[1755205176361,3.47569517,192.51,192.48,26.0]
[1755205176864,0.71,192.5,192.46,10.26731201]
[1755205177073,37.92,192.49,192.45,15.46339563]
[1755205177286,3.47569517,192.48,192.45,15.46339563]
[1755205177675,3.47569517,192.48,192.46,10.26731201]
[1755205177983,3.47569517,192.48,192.46,15.46311885]
[1755205178281,3.47569517,192.48,192.47,10.26731201]
[1755205178785,37.92,192.49,192.47,10.95731201]
[1755205178993,37.92,192.49,192.48,10.95731201]
[1755205179359,37.88,192.52,192.48,10.95731201]
[1755205179578,3.48381653,192.51,192.49,0.69]
[1755205179783,0.77,192.56,192.5,10.95731201]
[1755205179968,37.9,192.53,192.5,0.69]
[1755205180171,37.9,192.53,192.48,0.69]
[1755205180487,4.19361744,192.52,192.48,26.0]
[1755205180670,4.19361744,192.51,192.45,26.0]
[1755205180874,4.19361744,192.5,192.45,36.26731201]
[1755205181071,38.63,192.49,192.43,5.19662949]
[1755205181386,3.48361744,192.48,192.43,15.4639415]
[1755205181589,4.19361744,192.48,192.43,15.4639415]
[1755205181793,3.48361744,192.48,192.42,0.03]
[1755205181969,4.19361744,192.47,192.43,10.26731201]
[1755205182177,3.48361744,192.46,192.43,10.26731201]
[1755205182378,37.92,192.45,192.43,5.88658875]
[1755205182580,37.94,192.46,192.43,5.88658875]
[1755205182779,37.94,192.46,192.43,31.88658875]
[1755205182971,3.48802237,192.45,192.42,0.03]
[1755205183177,4.19802237,192.45,192.42,0.03]
[1755205183583,3.48802237,192.45,192.44,10.26731201]
[1755205184391,37.94,192.46,192.42,0.03]
[1755205184590,0.71,192.44,192.42,0.03]
[1755205184987,0.71,192.43,192.42,0.03]
[1755205185172,0.71,192.44,192.42,0.03]
[1755205185891,3.48807227,192.45,192.42,0.03]